fUST/lending_fUST_20250606
["ID","MTS","AMOUNT","RATE_DAILY","PERIOD"]
[364683642,1749198648817,-440.0,0.00022272,2]
[364683644,1749198648826,-158.77758909,0.00022272,2]
[364683646,1749198648836,-500.0,0.00022273,2]
[364683648,1749198648845,-500.0,0.00022273,2]
[364683650,1749198648855,-440.0,0.00022273,2]
[364683661,1749198648964,-440.0,0.00022273,2]
[364683663,1749198648974,-440.0,0.00022273,2]
[364683665,1749198648985,-508.54380695,0.00022473,2]
[364683667,1749198648994,-244.513475,0.00022482,2]
[364683669,1749198649005,-2880.11505147,0.00022487,2]
[364683671,1749198649014,-440.0,0.00022542,2]
[364683673,1749198649024,-440.0,0.00022542,2]
[364683675,1749198649033,-420.0,0.00022542,2]
[364683677,1749198649043,-440.0,0.00022542,2]
[364683679,1749198649052,-440.0,0.00022542,2]
[364683681,1749198649062,-420.0,0.00022542,2]
[364683683,1749198649077,-420.0,0.00022542,2]
[364683685,1749198649088,-440.0,0.00022542,2]
[364683687,1749198649097,-440.0,0.00022542,2]
[364683689,1749198649107,-420.0,0.00022542,2]
[364683691,1749198649117,-440.0,0.00022542,2]
[364683693,1749198649126,-414.91175788,0.00022542,2]
[364683695,1749198649136,-440.0,0.00022542,2]
[364683697,1749198649146,-420.0,0.00022542,2]
[364683699,1749198649158,-440.0,0.00022542,2]
[364683701,1749198649168,-440.0,0.00022542,2]
[364683703,1749198649178,-440.0,0.00022542,2]
[364683705,1749198649187,-440.0,0.00022542,2]
[364683707,1749198649196,-427.98792051,0.00022542,2]
[364683709,1749198649206,-440.0,0.00022542,2]
[364683711,1749198649215,-430.0,0.00022543,2]
[364683713,1749198649225,-440.0,0.00022543,2]
[364683715,1749198649234,-440.0,0.00022543,2]
[364683717,1749198649243,-440.0,0.00022543,2]
[364683719,1749198649254,-440.0,0.00022543,2]
[364683721,1749198649264,-440.0,0.00022543,2]
[364683723,1749198649273,-440.0,0.00022543,2]
[364683725,1749198649283,-440.0,0.00022543,2]
[364683727,1749198649292,-420.0,0.00022543,2]
[364683729,1749198649301,-420.0,0.00022543,2]
[364683731,1749198649310,-957.22,0.00022543,2]
[364683733,1749198649319,-440.0,0.00022543,2]
[364683735,1749198649330,-440.0,0.00022543,2]
[364683737,1749198649340,-440.0,0.00022543,2]
[364683739,1749198649351,-360.0,0.00022543,2]
[364683741,1749198649360,-440.0,0.00022545,2]
[364683743,1749198649369,-440.0,0.00022545,2]
[364683744,1749198649378,-440.0,0.00022545,2]
[364683747,1749198649389,-440.0,0.00022545,2]
[364683748,1749198649399,-500.0,0.00022545,2]
[364683750,1749198649408,-440.0,0.00022546,2]
[364683752,1749198649418,-440.0,0.00022546,2]
[364683754,1749198649429,-455.72521844,0.00022546,2]
[364683756,1749198649439,-440.0,0.00022546,2]
[364683758,1749198649448,-357.9206644,0.00022546,2]
[364683760,1749198649458,-440.0,0.00022546,2]
[364683762,1749198649469,-420.0,0.00022546,2]
[364683764,1749198649478,-440.0,0.00022546,2]
[364683766,1749198649487,-430.02280269,0.00022546,2]
[364683768,1749198649498,-440.0,0.00022546,2]
[364683770,1749198649507,-440.0,0.00022546,2]
[364683772,1749198649516,-440.0,0.00022546,2]
[364683774,1749198649526,-440.0,0.00022546,2]
[364683776,1749198649537,-440.0,0.00022546,2]
[364683778,1749198649546,-440.0,0.00022546,2]
[364683780,1749198649556,-440.0,0.00022546,2]
[364683782,1749198649565,-400.0,0.00022546,2]
[364683784,1749198649574,-184.89990275,0.00022546,2]
[364683785,1749198649582,-444.66,0.00022546,2]
[364683787,1749198649592,-440.0,0.00022546,2]
[364683789,1749198649601,-440.0,0.00022547,2]
[364683791,1749198649611,-440.0,0.00022547,2]
[364683793,1749198649620,-440.0,0.00022547,2]
[364683795,1749198649630,-507.06452997,0.00022557,2]
[364683797,1749198649640,-160.0,0.00022577,2]
[364683799,1749198649649,-229.52673067,0.00022577,2]
[364683801,1749198649658,-834.50537533,0.00022577,2]
[364683803,1749198649668,-423.83542519,0.00022577,2]
[364683805,1749198649678,-500.0,0.00022629,2]
[364683808,1749198649690,-507.27027264,0.00022633,2]
[364683810,1749198649700,-440.0,0.00022816,2]
[364683811,1749198649709,-440.0,0.00022816,2]
[364683813,1749198649718,-440.0,0.00022816,2]
[364683815,1749198649727,-440.0,0.00022816,2]
[364683817,1749198649736,-440.0,0.00022816,2]
[364683819,1749198649745,-440.0,0.00022816,2]
[364683821,1749198649757,-440.0,0.00022816,2]
[364683823,1749198649766,-440.0,0.00022816,2]
[364683825,1749198649776,-440.0,0.00022816,2]
[364683827,1749198649786,-440.0,0.00022816,2]
[364683829,1749198649796,-440.0,0.00022817,2]
[364683831,1749198649805,-440.0,0.00022817,2]
[364683833,1749198649814,-440.0,0.00022817,2]
[364683835,1749198649824,-444.94576001,0.00022817,2]
[364683837,1749198649833,-440.0,0.00022817,2]
[364683838,1749198649842,-957.22,0.00022817,2]
[364683839,1749198649851,-440.0,0.00022817,2]
[364683840,1749198649860,-440.0,0.00022817,2]
[364683841,1749198649869,-440.0,0.00022817,2]
[364683842,1749198649878,-440.0,0.00022819,2]
[364683843,1749198649888,-440.0,0.00022819,2]
[364683844,1749198649897,-440.0,0.00022819,2]
[364683845,1749198649906,-440.0,0.00022819,2]
[364683846,1749198649915,-430.0,0.0002282,2]
[364683847,1749198649924,-428.29126147,0.0002282,2]
[364684694,1749198717258,12000.0,0.00024,120]
[364684704,1749198811720,200.0,0.00023786,120]
[364684712,1749198954507,8386.0,0.00024,120]
[364684765,1749199537121,-431.36923478,0.00019469,2]
[364684766,1749199540081,-1068.63076522,0.00019469,2]
[364684767,1749199540101,-222.292093,0.00019998,2]
[364684768,1749199540122,-1473.20236738,0.0002,2]
[364684773,1749199634081,-150.0,0.00018916,2]
[364684774,1749199634107,-113.69557926,0.00019817,2]
[364684775,1749199634135,-286.30977744,0.00019817,2]
[364684776,1749199634157,-146.01492961,0.00019817,2]
[364684778,1749199636099,-353.98507039,0.00019817,2]
[364684779,1749199636121,-500.0,0.00019817,2]
[364684780,1749199636144,-183.50450681,0.00019817,2]
[364684781,1749199641078,-294.71721162,0.00019817,2]
[364684782,1749199645143,-21.77828157,0.00019817,2]
[364684783,1749199645165,-500.0,0.00019817,2]
[364684784,1749199645187,-500.0,0.00019817,2]
[364684785,1749199645208,-500.0,0.00019817,2]
[364684786,1749199645231,-500.0,0.00019817,2]
[364684787,1749199645253,-500.0,0.00019817,2]
[364684788,1749199645274,-500.0,0.00019817,2]
[364684789,1749199645297,-594.58265592,0.00019817,2]
[364684790,1749199645319,-500.0,0.00019817,2]
[364684791,1749199645341,-500.0,0.00019817,2]
[364684792,1749199645362,-500.0,0.00019817,2]
[364684793,1749199645384,-500.0,0.00019817,2]
[364684794,1749199645416,-446.88982864,0.00019817,2]
[364684795,1749199645438,-573.65505621,0.00019817,2]
[364684796,1749199645458,-500.0,0.00019817,2]
[364684797,1749199645478,-951.2367819,0.00019818,2]
[364684798,1749199649082,-183.50014842,0.00019818,2]
[364684799,1749199650086,-1345.47928906,0.00019818,2]
[364684806,1749199774550,150.234,0.00013699,2]
[364684807,1749199774572,142.181508,0.00013699,2]
[364684862,1749199832044,-194.0,0.00019817,2]
[364684864,1749199832054,-20463.31447712,0.00019818,2]
[364684866,1749199832063,-182.8775316,0.00019818,2]
[364684868,1749199832072,-2346.69952925,0.0002,2]
[364684870,1749199832082,-292.415508,0.00020187,2]
[364684872,1749199832091,-1500.0,0.00020565,2]
[364684874,1749199832100,-150.0,0.00020636,2]
[364684876,1749199832109,-300.0,0.00020887,2]
[364684878,1749199832119,-167.389,0.00020888,2]
[364684880,1749199832129,-46330.7347589,0.00020889,2]
[364684882,1749199832138,-10000.0,0.00020889,2]
[364684884,1749199832148,-211.33310595,0.000209,4]
[364684885,1749199832158,-1429.45403235,0.000209,2]
[364684887,1749199832168,-160.0,0.00021134,2]
[364684889,1749199832178,-186.37720291,0.00021338,2]
[364684891,1749199832189,-1500.0,0.00021661,2]
[364684893,1749199832199,-211.33310592,0.000217,5]
[364684895,1749199832209,-316.58644751,0.000219,2]
[364684898,1749199832228,-231.61329369,0.000219,2]
[364684899,1749199832238,-500.0,0.00021915,2]
[364684900,1749199832248,-500.0,0.00021915,2]
[364684902,1749199832258,-179.22824451,0.00021915,2]
[364684903,1749199832267,-1312.5576353,0.00021916,2]
[364684904,1749199832279,-1996.875,0.00021916,2]
[364684905,1749199832290,-743.37687378,0.00021916,2]
[364684916,1749199837968,-38741.86847092,0.00021916,2]
[364684917,1749199837979,-500.88314752,0.00021917,2]
[364684918,1749199837989,-440.0,0.00021917,2]
[364684919,1749199837999,-430.0,0.00021917,2]
[364684920,1749199838008,-440.0,0.00021917,2]
[364684921,1749199838018,-521.78576508,0.00021917,2]
[364684922,1749199838027,-430.0,0.00021917,2]
[364684923,1749199838037,-440.0,0.00021917,2]
[364684924,1749199838046,-440.0,0.00021917,2]
[364684925,1749199838055,-440.0,0.00021917,2]
[364684926,1749199838065,-440.0,0.00021917,2]
[364684927,1749199838074,-440.0,0.00021917,2]
[364684928,1749199838083,-500.0,0.00021917,2]
[364684929,1749199838092,-500.0,0.00021917,2]
[364684930,1749199838102,-500.0,0.00021917,2]
[364684931,1749199838111,-440.0,0.00021917,2]
[364684932,1749199838121,-430.0,0.00021917,2]
[364684933,1749199838131,-440.0,0.00021917,2]
[364684934,1749199838140,-440.0,0.00021917,2]
[364684935,1749199838149,-430.82946357,0.00021917,2]
[364684936,1749199838161,-440.0,0.00021917,2]
[364684937,1749199838171,-440.0,0.00021917,2]
[364684938,1749199838180,-430.0,0.00021917,2]
[364684939,1749199838189,-431.7185109,0.00021917,2]
[364684940,1749199838198,-440.0,0.00021917,2]
[364684941,1749199838208,-430.0,0.00021917,2]
[364684942,1749199838218,-440.0,0.00021917,2]
[364684943,1749199838228,-440.0,0.00021917,2]
[364684944,1749199838237,-440.0,0.00021917,2]
[364684945,1749199838247,-468.6591881,0.00021917,2]
[364684946,1749199838256,-264.46,0.00021917,2]
[364684947,1749199838265,-443.97466153,0.00021917,2]
[364684948,1749199838275,-430.0,0.00021917,2]
[364684949,1749199838284,-495.54,0.00021917,2]
[364684950,1749199838294,-430.0,0.00021917,2]
[364684951,1749199838303,-440.0,0.00021917,2]
[364684952,1749199838312,-158.58,0.00021917,2]
[364684953,1749199838321,-522.20250663,0.00021917,2]
[364684954,1749199838338,-430.0,0.00021917,2]
[364684955,1749199838351,-376.32,0.00021917,2]
[364684956,1749199838361,-430.0,0.00021917,2]
[364684957,1749199838371,-483.65875036,0.00021917,2]
[364684958,1749199838381,-440.0,0.00021917,2]
[364684959,1749199838390,-186.71549812,0.00021917,2]
[364684960,1749199838399,-440.0,0.00021917,2]
[364684961,1749199838408,-430.0,0.00021917,2]
[364684962,1749199838420,-440.0,0.00021917,2]
[364684963,1749199838555,-430.0,0.00021917,2]
[364684964,1749199838567,-440.0,0.00021917,2]
[364684965,1749199838579,-440.0,0.00021917,2]
[364684966,1749199838588,-440.0,0.00021917,2]
[364684967,1749199838598,-440.0,0.00021917,2]
[364684968,1749199838607,-360.84265535,0.00021917,2]
[364685016,1749199971019,294489.23570364,0.00024657,120]
[364685040,1749200730101,-150.0,0.00019594,2]
[364685041,1749200730124,-500.0,0.00019594,2]
[364685042,1749200730149,-300.0,0.00020761,2]
[364685043,1749200730171,-300.0,0.00020761,2]
[364685044,1749200730310,-175.0,0.00020761,2]
[364685045,1749200730335,-1200.0,0.00020761,2]
[364685046,1749200730358,-1698.18019105,0.00020762,2]
[364685047,1749200750098,-350.08662334,0.00020762,2]
[364685050,1749200764805,279.721486,0.00013699,2]
[364685053,1749200796277,-210.02168284,0.00020187,2]
[364685055,1749200832143,-69.69980316,0.00020187,2]
[364685056,1749200832163,-2398.93699745,0.00020762,2]
[364685057,1749200834135,-987.47070051,0.00020762,2]
[364685058,1749200845079,-335.25345241,0.00020762,2]
[364685059,1749200847074,-645.21702162,0.00020762,2]
[364685061,1749200851100,-551.98346855,0.00020762,2]
[364685062,1749200853163,-292.26102472,0.00020762,2]
[364685063,1749200854086,-165.18055566,0.00020762,2]
[364685065,1749200931427,150.98036756,0.00018,2]
[364685067,1749200955078,-150.0,0.00018161,2]
[364685068,1749200955098,-4.71054103,0.000189,2]
[364685069,1749200956126,-1057.76846499,0.000189,2]
[364685070,1749200956149,-150.0,0.00019026,2]
[364685071,1749200956171,-1300.0,0.00019469,2]
[364685100,1749201032265,-150.0,0.0001989,2]
[364685101,1749201032276,-382.5086556,0.00019961,2]
[364685102,1749201032286,-1300.0,0.00020565,2]
[364685103,1749201032296,-2316.40527919,0.00020762,2]
[364685104,1749201032305,-293.0281551,0.00020787,2]
[364685105,1749201032315,-214.134975,0.00020893,2]
[364685106,1749201032325,-211.33310592,0.000209,4]
[364685107,1749201032335,-300.0,0.00020927,2]
[364685108,1749201032345,-500.0,0.00020928,2]
[364685109,1749201032355,-162.09117613,0.00020928,2]
[364685110,1749201032365,-500.0,0.00020928,2]
[364685111,1749201032374,-500.0,0.00020928,2]
[364685112,1749201032384,-309.00776086,0.00020928,2]
[364685114,1749201032393,-397.07278402,0.00020928,2]
[364685116,1749201032403,-500.0,0.00020928,2]
[364685117,1749201032412,-500.0,0.00020928,2]
[364685119,1749201032422,-500.0,0.00020928,2]
[364685121,1749201032431,-500.0,0.00020928,2]
[364685123,1749201032441,-500.0,0.00020928,2]
[364685125,1749201032451,-500.0,0.00020928,2]
[364685127,1749201032461,-500.0,0.00020928,2]
[364685130,1749201032471,-500.0,0.00020928,2]
[364685132,1749201032481,-500.0,0.00020928,2]
[364685133,1749201032490,-522.10584425,0.00020928,2]
[364685134,1749201032500,-500.0,0.00020928,2]
[364685135,1749201032510,-500.0,0.00020928,2]
[364685136,1749201032520,-500.0,0.00020928,2]
[364685137,1749201032529,-500.0,0.00020928,2]
[364685138,1749201032540,-500.0,0.00020928,2]
[364685139,1749201032550,-500.0,0.00020928,2]
[364685140,1749201032560,-500.0,0.00020928,2]
[364685141,1749201032569,-500.0,0.00020928,2]
[364685142,1749201032579,-500.0,0.00020928,2]
[364685143,1749201032588,-500.0,0.00020928,2]
[364685144,1749201032598,-500.0,0.00020928,2]
[364685145,1749201032607,-500.0,0.00020928,2]
[364685146,1749201032616,-500.0,0.00020928,2]
[364685147,1749201032626,-500.0,0.00020928,2]
[364685148,1749201032635,-500.0,0.00020928,2]
[364685149,1749201032644,-500.0,0.00020928,2]
[364685150,1749201032654,-500.0,0.00020928,2]
[364685151,1749201032665,-500.0,0.00020928,2]
[364685152,1749201032674,-500.0,0.00020928,2]
[364685153,1749201032684,-500.0,0.00020928,2]
[364685154,1749201032694,-500.0,0.00020928,2]
[364685155,1749201032854,-500.0,0.00020928,2]
[364685156,1749201032864,-500.0,0.00020928,2]
[364685157,1749201032874,-500.0,0.00020928,2]
[364685158,1749201032884,-500.0,0.00020928,2]
[364685159,1749201032893,-300.0,0.00020929,2]
[364685160,1749201032903,-5822.382969,0.00020933,2]
[364685161,1749201032912,-1011.16327988,0.00021,10]
[364685162,1749201032922,-1563.0,0.00021398,2]
[364685163,1749201032931,-1300.0,0.00021661,2]
[364685164,1749201032941,-161.903,0.00021914,2]
[364685165,1749201032951,-406944.88442,0.00021916,2]
[364685166,1749201032961,-440.0,0.00021917,2]
[364685167,1749201032970,-483.17,0.00021917,2]
[364685168,1749201032980,-430.0,0.00021917,2]
[364685169,1749201032990,-371.04285288,0.00021917,2]
[364685170,1749201033000,-502.9,0.00021917,2]
[364685171,1749201033010,-440.0,0.00021917,2]
[364685172,1749201033022,-440.0,0.00021917,2]
[364685173,1749201033032,-415.0,0.00021917,2]
[364685174,1749201033043,-440.0,0.00021917,2]
[364685175,1749201033053,-468.31550143,0.00021917,2]
[364685176,1749201033065,-441.94097423,0.00021917,2]
[364685177,1749201033076,-440.0,0.00021917,2]
[364685178,1749201033086,-292.38738457,0.00021917,2]
[364685179,1749201033096,-440.0,0.00021917,2]
[364685180,1749201033106,-440.0,0.00021917,2]
[364685181,1749201033116,-440.0,0.00021917,2]
[364685182,1749201033126,-440.0,0.00021917,2]
[364685183,1749201033135,-440.0,0.00021917,2]
[364685184,1749201033147,-373.70114002,0.00021917,2]
[364685185,1749201033157,-430.0,0.00021917,2]
[364685186,1749201033167,-420.0,0.00021917,2]
[364685187,1749201033177,-430.0,0.00021917,2]
[364685188,1749201033187,-440.0,0.00021917,2]
[364685189,1749201033197,-440.0,0.00021917,2]
[364685190,1749201033207,-440.0,0.00021917,2]
[364685191,1749201033217,-420.0,0.00021917,2]
[364685192,1749201033227,-306.1858455,0.00021917,2]
[364685193,1749201033236,-420.0,0.00021917,2]
[364685194,1749201033246,-440.0,0.00021917,2]
[364685195,1749201033255,-440.0,0.00021917,2]
[364685196,1749201033266,-440.0,0.00021917,2]
[364685197,1749201033276,-430.0,0.00021917,2]
[364685198,1749201033287,-440.0,0.00021917,2]
[364685199,1749201033297,-410.0,0.00021917,2]
[364685200,1749201033306,-410.0,0.00021917,2]
[364685201,1749201033316,-420.0,0.00021917,2]
[364685202,1749201033326,-440.0,0.00021917,2]
[364685203,1749201033336,-440.0,0.00021917,2]
[364685204,1749201033345,-440.0,0.00021917,2]
[364685205,1749201033355,-440.0,0.00021917,2]
[364685206,1749201033365,-273.42,0.00021917,2]
[364685207,1749201033375,-440.0,0.00021917,2]
[364685208,1749201033384,-440.0,0.00021917,2]
[364685209,1749201033394,-440.0,0.00021917,2]
[364685210,1749201033404,-440.0,0.00021917,2]
[364685211,1749201033414,-440.0,0.00021917,2]
[364685212,1749201033423,-440.0,0.00021917,2]
[364685213,1749201033433,-440.0,0.00021917,2]
[364685214,1749201033443,-440.0,0.00021917,2]
[364685215,1749201033452,-440.0,0.00021917,2]
[364685216,1749201033462,-461.47155028,0.00021917,2]
[364685217,1749201033472,-430.0,0.00021917,2]
[364685218,1749201033482,-304.91553664,0.00021917,2]
[364685219,1749201033491,-430.0,0.00021917,2]
[364685220,1749201033501,-440.0,0.00021917,2]
[364685221,1749201033510,-440.0,0.00021917,2]
[364685222,1749201033521,-440.0,0.00021917,2]
[364685223,1749201033531,-440.0,0.00021917,2]
[364685224,1749201033542,-430.0,0.00021917,2]
[364685225,1749201033552,-440.0,0.00021917,2]
[364685226,1749201033562,-430.0,0.00021917,2]
[364685227,1749201033572,-440.0,0.00021917,2]
[364685228,1749201033581,-440.0,0.00021917,2]
[364685229,1749201033591,-440.0,0.00021917,2]
[364685230,1749201033601,-440.0,0.00021917,2]
[364685231,1749201033611,-440.0,0.00021917,2]
[364685232,1749201033620,-440.0,0.00021917,2]
[364685233,1749201033630,-440.0,0.00021917,2]
[364685234,1749201033640,-440.0,0.00021917,2]
[364685235,1749201033649,-440.0,0.00021917,2]
[364685236,1749201033659,-440.71709384,0.00021917,2]
[364685237,1749201033668,-440.0,0.00021917,2]
[364685238,1749201033678,-430.0,0.00021917,2]
[364685239,1749201033687,-528.15264217,0.00021917,2]
[364685240,1749201033697,-430.0,0.00021917,2]
[364685241,1749201033706,-440.0,0.00021917,2]
[364685242,1749201033715,-440.0,0.00021917,2]
[364685243,1749201033725,-440.0,0.00021917,2]
[364685244,1749201033734,-440.0,0.00021917,2]
[364685245,1749201033743,-469.55745892,0.00021917,2]
[364685246,1749201033753,-440.0,0.00021917,2]
[364685247,1749201033762,-400.6395,0.00021917,2]
[364685248,1749201033771,-430.0,0.00021917,2]
[364685249,1749201033782,-440.0,0.00021917,2]
[364685250,1749201033796,-440.0,0.00021917,2]
[364685251,1749201033806,-430.0,0.00021917,2]
[364685252,1749201033816,-440.0,0.00021917,2]
[364685253,1749201033827,-440.0,0.00021917,2]
[364685254,1749201033837,-440.0,0.00021917,2]
[364685255,1749201033847,-440.0,0.00021917,2]
[364685256,1749201033858,-440.0,0.00021917,2]
[364685257,1749201033868,-440.0,0.00021917,2]
[364685258,1749201033878,-440.0,0.00021917,2]
[364685259,1749201033888,-420.0,0.00021917,2]
[364685260,1749201033898,-184.65071865,0.00021917,2]
[364685261,1749201033908,-427.92,0.00021917,2]
[364685262,1749201033918,-440.0,0.00021917,2]
[364685263,1749201033928,-440.0,0.00021917,2]
[364685264,1749201033938,-532.76872918,0.00021917,2]
[364685265,1749201033948,-440.0,0.00021917,2]
[364685266,1749201033958,-440.0,0.00021917,2]
[364685267,1749201033968,-440.0,0.00021917,2]
[364685268,1749201033977,-440.0,0.00021917,2]
[364685269,1749201033986,-440.0,0.00021917,2]
[364685270,1749201033996,-561.68188595,0.00021917,2]
[364685271,1749201034007,-440.0,0.00021917,2]
[364685272,1749201034017,-440.0,0.00021917,2]
[364685273,1749201034027,-440.0,0.00021917,2]
[364685274,1749201034038,-440.0,0.00021917,2]
[364685275,1749201034048,-440.0,0.00021917,2]
[364685276,1749201034059,-440.0,0.00021917,2]
[364685277,1749201034079,-430.0,0.00021917,2]
[364685278,1749201034090,-554.89,0.00021917,2]
[364685279,1749201034101,-440.0,0.00021917,2]
[364685280,1749201034111,-440.0,0.00021917,2]
[364685281,1749201034122,-440.0,0.00021917,2]
[364685282,1749201034132,-430.0,0.00021917,2]
[364685283,1749201034142,-440.0,0.00021917,2]
[364685284,1749201034152,-440.0,0.00021917,2]
[364685285,1749201034163,-353.62,0.00021917,2]
[364685286,1749201034173,-440.0,0.00021917,2]
[364685287,1749201034183,-440.0,0.00021917,2]
[364685288,1749201034193,-440.0,0.00021917,2]
[364685289,1749201034203,-440.0,0.00021917,2]
[364685290,1749201034213,-440.0,0.00021917,2]
[364685291,1749201034223,-440.0,0.00021917,2]
[364685292,1749201034232,-430.0,0.00021917,2]
[364685293,1749201034243,-440.0,0.00021917,2]
[364685294,1749201034253,-4124.88,0.00021917,2]
[364685295,1749201034263,-572.77,0.00021917,2]
[364685296,1749201034273,-500.0,0.00021917,2]
[364685297,1749201034284,-500.0,0.00021917,2]
[364685298,1749201034294,-500.0,0.00021917,2]
[364685299,1749201034305,-435.69974064,0.00021917,2]
[364685300,1749201034315,-500.0,0.00021973,2]
[364685301,1749201034325,-5028.23630534,0.00022,2]
[364685302,1749201034335,-583.64,0.00022,7]
[364685303,1749201034346,-184.046707,0.0002203,2]
[364685304,1749201034355,-153.38429643,0.00022184,2]
[364685305,1749201034365,-500.0,0.0002219,2]
[364685306,1749201034375,-182.15453462,0.0002219,2]
[364685307,1749201034386,-3420.6,0.00022191,2]
[364685308,1749201034395,-430.0,0.00022191,2]
[364685309,1749201034405,-420.0,0.00022191,2]
[364685310,1749201034415,-420.0,0.00022191,2]
[364685311,1749201034426,-200.24566591,0.00022191,2]
[364685312,1749201034436,-440.0,0.00022191,2]
[364685313,1749201034446,-306.52231408,0.00022191,2]
[364685314,1749201034456,-440.0,0.00022191,2]
[364685315,1749201034465,-410.0,0.00022191,2]
[364685316,1749201034475,-440.0,0.00022191,2]
[364685317,1749201034486,-410.0,0.00022191,2]
[364685318,1749201034496,-196.02551417,0.00022191,2]
[364685319,1749201034506,-420.0,0.00022191,2]
[364685320,1749201034516,-440.0,0.00022191,2]
[364685321,1749201034527,-440.0,0.00022191,2]
[364685322,1749201034539,-440.0,0.00022191,2]
[364685323,1749201034549,-422.59936706,0.00022191,2]
[364685324,1749201034560,-440.0,0.00022191,2]
[364685325,1749201034570,-420.0,0.00022191,2]
[364685326,1749201034580,-420.0,0.00022191,2]
[364685327,1749201034589,-420.0,0.00022191,2]
[364685328,1749201034599,-440.0,0.00022191,2]
[364685329,1749201034609,-440.0,0.00022191,2]
[364685330,1749201034619,-440.0,0.00022191,2]
[364685331,1749201034629,-440.0,0.00022191,2]
[364685332,1749201034638,-440.0,0.00022191,2]
[364685333,1749201034648,-440.0,0.00022191,2]
[364685334,1749201034657,-433.40906392,0.00022191,2]
[364685335,1749201034667,-312.65519947,0.00022191,2]
[364685336,1749201034676,-440.0,0.00022191,2]
[364685337,1749201034686,-440.0,0.00022191,2]
[364685338,1749201034696,-420.0,0.00022191,2]
[364685339,1749201034705,-420.0,0.00022191,2]
[364685340,1749201034714,-440.0,0.00022191,2]
[364685341,1749201034724,-440.0,0.00022191,2]
[364685342,1749201034733,-440.0,0.00022191,2]
[364685343,1749201034743,-420.0,0.00022191,2]
[364685344,1749201034753,-420.0,0.00022191,2]
[364685345,1749201034762,-420.0,0.00022191,2]
[364685346,1749201034772,-440.0,0.00022191,2]
[364685347,1749201034782,-440.35244279,0.00022191,2]
[364685348,1749201034796,-440.0,0.00022191,2]
[364685349,1749201034806,-440.0,0.00022191,2]
[364685350,1749201034816,-420.0,0.00022191,2]
[364685351,1749201034825,-440.0,0.00022191,2]
[364685352,1749201034836,-440.0,0.00022191,2]
[364685353,1749201034846,-440.0,0.00022191,2]
[364685354,1749201034856,-440.0,0.00022191,2]
[364685355,1749201034867,-324.91473207,0.00022191,2]
[364685356,1749201034878,-440.0,0.00022191,2]
[364685357,1749201034888,-440.0,0.00022191,2]
[364685358,1749201034898,-420.0,0.00022191,2]
[364685359,1749201034908,-322.99973219,0.00022191,2]
[364685360,1749201034917,-420.0,0.00022191,2]
[364685361,1749201034927,-440.0,0.00022191,2]
[364685362,1749201034937,-440.0,0.00022191,2]
[364685363,1749201034947,-440.0,0.00022191,2]
[364685364,1749201034958,-440.0,0.00022191,2]
[364685365,1749201034968,-440.0,0.00022191,2]
[364685366,1749201034977,-440.0,0.00022191,2]